Cogmind - Beta 17 @@@ ROGUE MODE // 2026.07.12 @ 14:02:50 Player: nnnnsk Result: Destroyed by H-88 Terminator with Heavy Machine Gun Performance ------------- Evolutions (8) 4000 Regions Visited (19) 3800 Robots Destroyed (197) 985 Value Destroyed (8392) 8392 Prototype IDs (40) 800 Alien Tech Used (0) 0 Bonus (4434) 4434 TOTAL SCORE: 22411 Bonus ------- High Alert Combat Kills 648 Follower Combat Kills 2086 Entered Garrisons 200 Used RIF Installer 1000 Met Data Miner 300 Met R17 at Cetus 500 Friendly Fire -300 Cogmind --------- Core Integrity 0/1450 Matter 300/300 Energy 100/100 System Corruption 29% Temperature Cool (0) Movement Core (50) Location -2/Research Parts ------- > --- POWER (2) -------- (None) > --- PROPULSION (6) --- (None) > --- UTILITY (12) ----- (None) > --- WEAPON (3) ------- (None) > --- INVENTORY (5) ---- Advanced Signal Interpreter Hacking Suite Enhanced Quantum Rifle Advanced Remote Datajack Phasing Sabre Peak State ------------ > --- POWER ------------ Neutrino Core Quantum Reactor > --- PROPULSION ------- Biometal Medium Treads Biometal Medium Treads Biometal Medium Treads Biometal Medium Treads Centrium Heavy Treads > --- UTILITY ---------- Advanced Heat Sink Advanced Cooling System Medium Storage Unit Enhanced Optical Array Advanced Signal Interpreter Advanced Recoil Stabilizer Phase Shifter Centrium Medium Armor Plating Centrium Medium Armor Plating Centrium Medium Armor Plating Medium Regenerative Plating Improved Thermal Shield > --- WEAPON ----------- Advanced Variable Charge Gun Advanced Variable Charge Gun Advanced Variable Charge Gun > --- INVENTORY -------- Quantum Reactor Biometal Medium Treads Advanced Hacking Suite Advanced Variable Charge Gun Railgun Advanced KE Penetrator Advanced KE Penetrator Phasing Sabre [Rating: 168] Favorites ----------- Power Light Nuclear Core Engine Light Angular Momentum Engine Power Core Light Nuclear Core Reactor Quantum Reactor Propulsion Light Treads Treads Light Treads Leg Biometal Leg Hover Unit Cooled Aerolev Unit Flight Unit Surge Thruster Utility Large Storage Unit Device Improved Heat Sink Storage Large Storage Unit Processor Core Analyzer Hackware Relay Coupler [NC] Protection Hardened Medium Armor Plating Weapon Katana Energy Gun Plasma Rifle Energy Cannon Cooled Plasma Cannon Ballistic Gun Assault Rifle Ballistic Cannon Slug Cannon Launcher Rocket Launcher Special Weapon Remote Datajack Slashing Weapon Katana Piercing Weapon Heavy Pick Special Melee Weapon Datajack Build | -11 -10 -10 -10 -9 -8 -8 -8 -7 -7 -7 -7 -6 -6 -5 -4 -4 -4 -3 -2 ------- Run | Yrd Mat Min Exi Min Mat Gar Sto Fac Low Low Dat Pro Fac Fac Fac Ext Cet Res Res Slots Evolved 16 | . . . . . 4 . . 2 . . . . 2 2 2 . . 2 2 Power 1 | . . . . . . . . . . . . . . . 1 . . . . Propulsion 4 | . . . . . 2 . . . . . . . . 1 1 . . . . Utility 10 | . . . . . 2 . . 2 . . . . 2 1 . . . 1 2 Weapon 1 | . . . . . . . . . . . . . . . . . . 1 . Parts Attached 220 | 8 15 1 1 5 27 18 11 2 1 1 . 2 42 4 3 34 10 5 30 Power 27 | 1 2 . . . 1 3 1 . . . . 1 6 1 1 3 3 . 4 Engine 8 | 1 1 . . . . . 1 . . . . . 4 . 1 . . . . Core 13 | . 1 . . . 1 3 . . . . . 1 2 1 . 3 1 . . Reactor 6 | . . . . . . . . . . . . . . . . . 2 . 4 Propulsion 68 | 2 4 . . . 11 5 6 . . . . 1 16 1 . 11 1 4 6 Treads 39 | 2 2 . . . 9 4 5 . . . . 1 1 . . 8 1 4 2 Leg 13 | . 2 . . . 2 1 . . . . . . 1 . . 3 . . 4 Wheel . | . . . . . . . . . . . . . . . . . . . . Hover 10 | . . . . . . . 1 . . . . . 9 . . . . . . Flight 6 | . . . . . . . . . . . . . 5 1 . . . . . Utility 75 | 2 2 1 1 2 7 4 2 1 . . . . 18 2 1 14 3 . 15 Device 27 | 1 1 1 . 1 2 1 1 . . . . . 3 . 1 6 1 . 8 Storage 6 | 1 . . 1 . 1 . . . . . . . 3 . . . . . . Processor 21 | . 1 . . . 3 1 . 1 . . . . 6 . . 4 . . 5 Hackware 10 | . . . . . . 1 1 . . . . . 5 2 . . . . 1 Protection 11 | . . . . 1 1 1 . . . . . . 1 . . 4 2 . 1 Artifact . | . . . . . . . . . . . . . . . . . . . . Weapon 50 | 3 7 . . 3 8 6 2 1 1 1 . . 2 . 1 6 3 1 5 Energy Gun 17 | 3 1 . . 1 2 3 . . . . . . . . . 1 2 1 3 Energy Cannon 1 | . . . . . . . 1 . . . . . . . . . . . . Ballistic Gun 18 | . 4 . . 1 2 2 1 . 1 . . . 1 . . 4 1 . 1 Ballistic Cannon 1 | . . . . 1 . . . . . . . . . . . . . . . Launcher 3 | . . . . . 2 1 . . . . . . . . . . . . . Special Weapon 3 | . . . . . . . . 1 . 1 . . . . . . . . 1 Impact Weapon . | . . . . . . . . . . . . . . . . . . . . Slashing Weapon 5 | . 1 . . . 2 . . . . . . . 1 . . 1 . . . Piercing Weapon 1 | . . . . . . . . . . . . . . . 1 . . . . Special Melee Weapon 1 | . 1 . . . . . . . . . . . . . . . . . . Unidentified Prototypes 11 | . . . . 1 2 . 3 . . . . . . . . 1 4 . . Corrupted Parts 2 | . . . . . . . . . . . . 1 . . . 1 . . . System Corruption 6 | . . . . . . . . . . . . 3 . . . 3 . . . Parts Lost 73 | . 2 . . 1 2 9 . . . 1 . . 24 . . 1 1 . 32 Power 13 | . . . . . . 3 . . . . . . 5 . . . . . 5 Propulsion 21 | . 1 . . . . 3 . . . . . . 9 . . . . . 8 Utility 26 | . . . . 1 2 2 . . . . . . 4 . . 1 1 . 15 Weapon 13 | . 1 . . . . 1 . . . 1 . . 6 . . . . . 4 Highest Loss Streak 13 | . 1 . . 1 1 2 . . . 1 . . 11 . . 1 1 . 13 To Critical Strikes . | . . . . . . . . . . . . . . . . . . . . Average Backups 11 | 3 7 8 8 9 13 14 14 14 14 14 15 15 13 8 9 9 9 9 8 Power . | . 1 1 1 1 1 . 1 1 1 1 1 1 1 . . . 1 1 1 Propulsion 1 | 2 2 1 1 . 1 1 1 2 2 2 2 2 3 2 . . . . . Utility 4 | . 1 3 3 4 5 6 6 5 5 5 5 4 3 3 6 3 3 3 2 Weapon 3 | 1 2 2 2 2 3 5 4 4 5 5 6 5 4 2 2 4 5 5 2 Tool/Special . | . . . . . . . . . . . . . . . . . . . . Unused Backups 44 | . 3 . . 2 9 5 5 . . . . . 5 1 1 5 3 . 5 Power 3 | . . . . 1 1 . . . . . . . . . . . . . 1 Propulsion 11 | . 2 . . 1 2 . 2 . . . . . 2 1 . 1 . . . Utility 16 | . . . . . 4 4 1 . . . . . 2 . . . 2 . 3 Weapon 14 | . 1 . . . 2 1 2 . . . . . 1 . 1 4 1 . 1 Tool/Special . | . . . . . . . . . . . . . . . . . . . . Average Slot Usage (%) 95 | . 99 100 100 87 96 96 99 99 100 99 100 100 95 87 88 92 88 83 86 Engine 2 | . 7 . . . . . 6 7 7 7 7 7 4 3 5 . . . . Core 5 | . 6 14 14 14 9 7 2 . . . . . 1 1 5 9 6 4 2 Treads 25 | . 20 28 28 28 33 35 35 30 30 30 30 30 13 . . 20 20 17 15 Leg 1 | . 7 . . . . . . . . . . . . . . 1 . . 2 Device 11 | . 5 14 14 10 2 7 8 15 15 15 15 15 8 5 5 17 28 23 19 Storage 8 | . 14 14 14 14 9 9 8 7 7 7 7 7 5 5 5 5 5 4 3 Processor 11 | . 8 . . . 16 7 9 14 15 15 15 15 18 17 15 16 5 4 13 Hackware 3 | . . . . . . 3 6 7 7 7 7 7 13 22 21 2 . . 1 Protection 3 | . . . . 3 7 7 2 . . . . . 2 . . 4 7 9 8 Energy Gun 3 | . 4 . . 1 4 7 11 . . . . . . . . 1 7 14 7 Energy Cannon 1 | . . . . . . . 2 7 5 5 7 7 1 . . . . . . Ballistic Gun 5 | . 16 14 14 3 8 4 . . . 1 . . . . . 7 2 . 4 Special Weapon 1 | . . . . . . . . 5 4 5 7 . 4 . . . . . . Slashing Weapon 3 | . 5 14 6 . 4 3 3 1 . . . . 4 5 2 . . . . Peak Build Rating 168 | 7 11 11 10 20 35 40 40 49 49 49 49 51 60 55 66 103 130 146 168 Average Rating 50 | 5 8 10 10 12 29 34 36 48 48 48 48 49 52 48 61 86 112 140 146 On Entrance 46 | . 7 11 10 10 15 35 33 37 49 45 49 48 51 36 55 63 103 130 146 Avg Prop Armor Cover (%) 6 | . . . . . 9 12 . . . . . . 5 8 . 4 . . 5 Naked Turns 3 | . . . . . . . . . . . . . . . . . . . 3 Heaviest Build 95 | 12 15 15 19 25 40 44 42 42 43 42 43 48 70 19 27 69 81 81 95 Greatest Support 225 | 40 40 40 40 40 86 86 91 88 88 88 88 93 93 27 28 186 220 220 225 Greatest Overweight (x) 5 | . . . . . 2 . . . . . . . 5 1 . . . . 2 Average Overweight (x) . | . . . . . . . . . . . . . . . . . . . . Largest Inventory Capacity 20 | 8 8 8 10 10 15 15 15 15 15 15 15 15 20 10 10 10 10 10 10 Average Capacity 12 | 7 8 8 8 10 14 15 14 15 15 15 15 15 15 10 10 10 10 10 9 Most Carried 20 | 7 8 8 8 10 15 15 15 15 15 15 15 15 20 10 10 10 10 10 10 Average Carried 11 | 4 7 8 8 9 13 14 14 14 14 14 15 14 13 8 9 9 9 9 8 Final Capacity 15 | 8 8 8 10 10 15 15 15 15 15 15 15 15 10 10 10 10 10 10 5 Final Carried 15 | 7 8 8 8 10 15 15 15 15 15 15 15 15 9 10 9 10 10 10 5 Class Distribution -------------------- 41% | Scavenger-Mutant 38% | Mutant 6% | Scavenger-Tank 5% | Scavenger-Skirmisher Dominant Class ---------------- Mutant | -10/Materials Mutant | -10/Mines Mutant | -10/Exiles Mutant | -9/Mines Scavenger-Mutant | -8/Materials Mutant | -8/Garrison Scavenger-Mutant | -8/Storage Scavenger-Mutant | -7/Factory Scavenger-Mutant | -7/Lower Caves Scavenger-Mutant | -7/Lower Caves Scavenger-Mutant | -7/Data Miner Scavenger-Mutant | -6/Proximity Caves Scavenger-Mutant | -6/Factory Scavenger-Scout | -5/Factory Scavenger-Scout | -4/Factory Scavenger-Mutant | -4/Extension Scavenger-Mutant | -4/Cetus Scavenger-Tank | -3/Research Scavenger-Tank | -2/Research Resources | -11 -10 -10 -10 -9 -8 -8 -8 -7 -7 -7 -7 -6 -6 -5 -4 -4 -4 -3 -2 ----------- Run | Yrd Mat Min Exi Min Mat Gar Sto Fac Low Low Dat Pro Fac Fac Fac Ext Cet Res Res Matter Collected 5335 | 203 320 10 10 143 701 708 238 . 227 126 . 25 913 75 40 613 179 50 754 Remotely . | . . . . . . . . . . . . . . . . . . . . Salvage Created 9077 | 19 584 . . 25 983 926 1073 . 167 120 . . 1792 100 91 888 265 . 2044 Parts 497 | 4 52 . . 5 52 54 56 . 5 8 . . 86 3 5 37 6 . 124 Haulers Intercepted 10 | . 2 . . . 3 . 3 . . . . . . 1 . . . . 1 Recyclers Shooed 6 | . . . . . . . . . . . . . 2 . . 2 . . 2 Parts Field Recycled . | . . . . . . . . . . . . . . . . . . . . Retrieved Matter . | . . . . . . . . . . . . . . . . . . . . Parts Self-Destructed 16 | . . . . . . . . . 9 7 . . . . . . . . . Prevented 4 | . . . . . . . . . 4 . . . . . . . . . . Parts Restored . | . . . . . . . . . . . . . . . . . . . . Kills | -11 -10 -10 -10 -9 -8 -8 -8 -7 -7 -7 -7 -6 -6 -5 -4 -4 -4 -3 -2 ------- Run | Yrd Mat Min Exi Min Mat Gar Sto Fac Low Low Dat Pro Fac Fac Fac Ext Cet Res Res Combat Hostiles Destroyed 135 | . 14 . . 2 19 27 15 . 4 7 . . 15 . . 6 2 . 24 Melee 17 | . . . . . 3 2 4 . . . . . 6 . . 2 . . . Guns 79 | . 14 . . . 11 12 10 . . 1 . . 2 . . 4 2 . 23 Cannons 11 | . . . . 2 . . 1 . 2 2 . . 4 . . . . . . AOE 26 | . . . . . 5 12 . . 2 4 . . 3 . . . . . . Classes Destroyed 20 | 1 6 . . 1 4 3 . . 1 . . . 3 . . . . . 1 Worker 10 | . 2 . . . 2 . 1 . . . . . 5 . . . . . . Builder 11 | . . . . . . . . . . . . . 3 . . 1 . . 7 Tunneler 5 | 1 2 . . 1 . . . . . . . . . . 1 . . . . Hauler 10 | . 2 . . . 3 . 3 . . . . . . 1 . . . . 1 Recycler 11 | . . . . . 1 . 1 . . . . . 7 . . 2 . . . Mechanic 3 | . . . . . 1 . . . . . . . 1 . 1 . . . . Operator 4 | . 1 . . . . . 1 . . . . . 1 1 . . . . . Drone 1 | . . . . . . . . . . . . . 1 . . . . . . Watcher 7 | . 3 . . . . 1 . . . . . . 1 . . 1 1 . . Swarmer 29 | . 9 . . . 7 5 . . . 4 . . 4 . . . . . . Cutter 1 | . . . . . . . . . . . . . 1 . . . . . . Grunt 38 | . 5 . . . 6 12 5 . 3 . . . 4 . . 2 . . 1 Brawler 2 | . . . . . . . . . 1 1 . . . . . . . . . Duelist 2 | . . . . . . 1 . . . 1 . . . . . . . . . Sentry 30 | . . . . . 5 5 10 . . 1 . . 2 . . 4 . . 3 Specialist 1 | . . . . . . 1 . . . . . . . . . . . . . Hunter 11 | . . . . . 1 2 . . . . . . 2 . . . . . 6 Programmer 16 | . . . . . . 1 . . . . . . 2 . . . . . 13 Heavy 1 | . . . . . . . . . . . . . . . . . . . 1 Cetus Guard 2 | . . . . . . . . . . . . . . . . . 2 . . Assembled 2 | . . . . 2 . . . . . . . . . . . . . . . Butcher 2 | . . . . . . . . . . . . . . . . 1 1 . . Guerrilla 1 | . . . . . . . . . . . . . . . . 1 . . . Best Kill Streak 12 | 1 4 . . 1 5 12 7 . 3 4 . . 12 1 1 2 2 . 9 Combat Bots Only 12 | . 3 . . 1 4 12 3 . 3 4 . . 5 . . 2 1 . 5 Max Kills in Single Turn 5 | 1 1 . . 1 3 4 2 . 1 3 . . 5 1 1 2 2 . 2 Gunslinging 1 | . . . . . . . . . . . . . . . . . . . 1 Exploded 4 | . . . . . 2 4 . . 1 3 . . 2 . . . . . . Melee 1 | . . . . . 1 1 1 . . . . . 1 . . 1 . . . Uniques/NPCs Destroyed . | . . . . . . . . . . . . . . . . . . . . Combat | -11 -10 -10 -10 -9 -8 -8 -8 -7 -7 -7 -7 -6 -6 -5 -4 -4 -4 -3 -2 -------- Run | Yrd Mat Min Exi Min Mat Gar Sto Fac Low Low Dat Pro Fac Fac Fac Ext Cet Res Res Hostile Shots Fired 1280 | . 72 . . 6 117 125 41 . 7 46 . . 253 1 . 97 46 . 469 Missed 395 | . 20 . . 1 36 26 14 . 2 20 . . 82 1 . 28 22 . 143 Hits 885 | . 52 . . 5 81 99 27 . 5 26 . . 171 . . 69 24 . 326 Melee 7 | . . . . 3 . . . . . . . . 3 . . . . . 1 Projectile 878 | . 52 . . 2 81 99 27 . 5 26 . . 168 . . 69 24 . 325 AOE 7 | . . . . . . 6 . . . . . . 1 . . . . . . Critical Strikes 48 | . . . . . 5 1 1 . . . . . 10 . . 7 4 . 20 Damage Taken 17094 | . 568 . . 102 1158 1764 424 . 108 242 . . 2871 . . 1103 475 51 8228 Core 2791 | . 51 . . 5 149 227 74 . 6 76 . . 606 . . 108 36 . 1453 Absorbed by Shields 417 | . . . . . . . . . . . . . . . . 284 133 . . Reduced by Siege Mode 98 | . . . . . . . . . . . . . . . . . . . 98 Ignored by Resistances 403 | . . . . . . . . . . . . . . . . 168 79 . 156 Regen/Repaired (Parts) 936 | . . . . . 380 . 98 . . . . . . . . 38 64 . 356 Core Remaining (%) 74 | 100 . . . 77 . . 18 . . . . 88 28 100 . . 87 100 . Volleys Fired 491 | 1 59 . . 11 39 54 39 10 28 11 . 27 75 . . 30 13 . 94 Largest 3 | 1 2 . . 2 2 2 2 1 2 2 . 1 2 . . 2 2 . 3 Hottest 380 | 40 80 . . 85 50 150 150 35 105 69 . 35 105 . . 114 160 . 380 Shots Fired 900 | 1 118 . . 12 75 93 75 10 29 14 . 27 93 . . 62 23 . 268 Gun 740 | 1 118 . . 2 72 80 72 . 1 2 . . 39 . . 62 23 . 268 Cannon 83 | . . . . 10 . . 3 2 12 4 . 27 25 . . . . . . Launcher 27 | . . . . . 3 13 . . 3 7 . . 1 . . . . . . Special 50 | . . . . . . . . 8 13 1 . . 28 . . . . . . Kinetic 386 | . 79 . . 11 72 30 . . 1 2 . . 34 . . 55 10 . 92 Thermal 411 | 1 35 . . 1 . 41 75 2 12 4 . 27 30 . . 7 13 . 163 Explosive 27 | . . . . . 3 13 . . 3 7 . . 1 . . . . . . Electromagnetic 26 | . 4 . . . . 9 . . . . . . . . . . . . 13 Robot Hit Streak 27 | 1 25 . . 27 12 11 13 4 7 6 . . 12 . . 9 8 . 23 Robot Miss Streak 6 | . 5 . . 3 2 4 4 1 1 1 . . 6 . . 4 2 . 4 Penetration Max 1 | . . . . . . . . . . . . . 1 . . 1 1 . 1 Secondary Targets 12 | . 1 . . . . . 1 . . . . . . . . 1 1 . 8 Max Gunslinging Chain 2 | . 1 . . . . . 1 . . . . . . . . 1 1 . 2 Shots Hit Robots 701 | 1 82 . 7 5 69 90 54 7 16 11 . . 90 3 5 54 18 . 189 Core Hits 342 | 1 39 . . 3 37 48 25 . 9 16 . . 46 2 3 30 13 . 70 Critical Kills 10 | . 1 . . . . . . . . . . . . . . 1 1 . 7 Critical Parts Destroyed 17 | . . . . . . . . . . . . . . . . 2 . . 15 Critical Strikes 46 | . 1 . . . 2 4 6 . . . . . 4 . . 4 1 . 24 Burn 9 | . . . . . . 2 5 . . . . . 2 . . . . . . Destroy 28 | . 1 . . . 1 . . . . . . . . . . 3 1 . 22 Corrupt 2 | . . . . . . . . . . . . . . . . . . . 2 Sever 6 | . . . . . 1 2 1 . . . . . 2 . . . . . . Impale 1 | . . . . . . . . . . . . . . . . 1 . . . Melee Attacks 254 | . 8 . 7 . 33 92 15 4 . . . . 59 7 8 18 . . 3 Impact . | . . . . . . . . . . . . . . . . . . . . Slashing 194 | . 8 . . . 33 60 14 2 . . . . 59 7 4 4 . . 3 Piercing 18 | . . . . . . . . . . . . . . . 4 14 . . . Sneak Attacks 76 | . 5 . 6 . 3 31 3 2 . . . . 18 2 2 3 . . 1 Combat Hostiles 1 | . . . . . . . . . . . . . . . . 1 . . . Follow-up Attacks . | . . . . . . . . . . . . . . . . . . . . Damage Inflicted 22220 | 12 1099 . . 131 1908 2638 1433 . 521 902 . . 3870 200 278 1856 692 . 6680 Guns 12801 | 12 688 . . 23 905 1087 984 . . 43 . . 600 . . 1223 692 . 6544 Cannons 1419 | . . . . 108 . . 124 . 284 126 . . 777 . . . . . . Explosions 3688 | . 129 . . . 410 1355 . . 237 733 . . 824 . . . . . . Melee 4257 | . 282 . . . 593 196 325 . . . . . 1669 200 278 627 . . 87 Ramming 55 | . . . . . . . . . . . . . . . . 6 . . 49 Kinetic 6099 | . 454 . . 118 905 396 . . . 43 . . 515 . . 1086 346 . 2236 Thermal 8179 | 12 223 . . 13 . 571 1108 . 284 126 . . 1322 . . 137 346 . 4037 Explosive 3163 | . 129 . . . 410 1290 . . 237 733 . . 364 . . . . . . Electromagnetic 467 | . 11 . . . . 185 . . . . . . . . . . . . 271 Impact . | . . . . . . . . . . . . . . . . . . . . Slashing 3459 | . 282 . . . 593 196 325 . . . . . 1669 200 107 . . . 87 Piercing 798 | . . . . . . . . . . . . . . . 171 627 . . . Highest Corruption 29 | . . . . 2 . 2 3 . . . . 3 8 . . 4 4 . 29 Average Corruption 5 | . . . . 2 . 1 2 . . . . 3 5 . . 3 4 . 13 Corruption Purged . | . . . . . . . . . . . . . . . . . . . . Corruption Blocked 15 | . . . . . . . . . . . . . . . . 15 . . . Effects 143 | . . . . 1 . 16 23 . . . . . 24 . . 23 7 . 49 Message Errors 29 | . . . . . . 4 3 . . . . . 7 . . 5 1 . 9 Matter Fused 26 | . . . . . . 1 5 . . . . . 4 . . 5 1 . 10 Heat Flow Errors 18 | . . . . . . 1 6 . . . . . 3 . . 3 . . 5 Energy Discharges 19 | . . . . . . 4 5 . . . . . 2 . . 4 . . 4 Parts Rejected 1 | . . . . . . . . . . . . . . . . . . . 1 Parts Fused 2 | . . . . . . 1 . . . . . . . . . . . . 1 Data Loss (minor) 16 | . . . . . . 3 2 . . . . . 2 . . 4 1 . 4 Data Loss (major) 9 | . . . . . . 2 . . . . . . 3 . . . 1 . 3 Misfires 5 | . . . . . . . 1 . . . . . . . . 2 . . 2 Alerts 3 | . . . . 1 . . . . . . . . 2 . . . . . . Misdirections 6 | . . . . . . . . . . . . . . . . . . . 6 Weapon Failures 9 | . . . . . . . 1 . . . . . 1 . . . 3 . 4 Overload Shots 36 | . . . . . . . 3 . 5 . . . 17 . . . . . 11 Effects 2 | . . . . . . . . . . . . . 1 . . . . . 1 Energy Bleed 2 | . . . . . . . . . . . . . 1 . . . . . 1 Overflow Damage 675 | . 47 . . . 30 9 . . 61 54 . . 326 37 23 41 . . 47 Projectiles 103 | . . . . . . . . . 61 . . . 42 . . . . . . Explosions 233 | . 8 . . . . 9 . . . 54 . . 162 . . . . . . Melee 339 | . 39 . . . 30 . . . . . . . 122 37 23 41 . . 47 Knockbacks 1 | . . . . 1 . . . . . . . . . . . . . . . Impact . | . . . . . . . . . . . . . . . . . . . . Kinetic 1 | . . . . 1 . . . . . . . . . . . . . . . Secondary . | . . . . . . . . . . . . . . . . . . . . Self-Inflicted Damage 421 | . 79 . . . 79 125 . . 19 22 . . 78 . . . . . 19 Shots 10 | . 1 . . . 2 3 . . 1 1 . . 2 . . . . . . Rammed 10 | . . . . . . . . . . . . . . . . . . . 10 Targets Rammed 12 | . . . . . . . . . . . . . . . . 1 . . 11 Kicked . | . . . . . . . . . . . . . . . . . . . . Crushed 2 | . . . . . . . . . . . . . . . . 1 . . 1 Highest Temperature 536 | . 60 . . 48 87 378 319 . 137 . . . 308 5 . 190 1 . 536 Average Temperature 69 | . 21 . . 19 19 86 78 . 77 . . . 97 4 . 65 1 . 110 Received Heat Transfer 2741 | . 102 . . . 333 486 189 . 45 48 . . 432 . . 593 72 . 441 Effects 9 | . . . . . . 3 . . . . . . 2 . . . . . 4 Shutdowns 1 | . . . . . . 1 . . . . . . . . . . . . . Energy Bleed 3 | . . . . . . 2 . . . . . . 1 . . . . . . Interference 4 | . . . . . . . . . . . . . 1 . . . . . 3 Damage (minor) 1 | . . . . . . . . . . . . . . . . . . . 1 Siege Activations 3 | . . . . . . . . . . . . . . . . . . . 3 Total Turns 71 | . . . . . . . . . . . . . . . . . . . 71 Longest Duration 27 | . . . . . . . . . . . . . . . . . . . 27 Martial Activations . | . . . . . . . . . . . . . . . . . . . . Shielding Activations . | . . . . . . . . . . . . . . . . . . . . Robots Disrupted . | . . . . . . . . . . . . . . . . . . . . Combat Hostiles . | . . . . . . . . . . . . . . . . . . . . Robots Corrupted . | . . . . . . . . . . . . . . . . . . . . Combat Hostiles . | . . . . . . . . . . . . . . . . . . . . Parts Fried 5 | . . . . . . 2 . . . . . . . . . . . . 3 Impact Corruptions . | . . . . . . . . . . . . . . . . . . . . Robots Melted 2 | . . . . . . 1 . . . . . . . . . . . . 1 Combat Hostiles 2 | . . . . . . 1 . . . . . . . . . . . . 1 Parts Melted 24 | . . . . . . 2 8 . . . . . 4 . . . . . 10 Heat Transferred 12195 | 25 500 . . 37 . 1450 2910 . 370 200 . . 1720 . . 193 481 . 4309 Parts Sabotaged . | . . . . . . . . . . . . . . . . . . . . Parts Stolen . | . . . . . . . . . . . . . . . . . . . . Parts Stripped . | . . . . . . . . . . . . . . . . . . . . Power Chain Reactions 1 | . . . . . . 1 . . . . . . . . . . . . . Alert | -11 -10 -10 -10 -9 -8 -8 -8 -7 -7 -7 -7 -6 -6 -5 -4 -4 -4 -3 -2 ------- Run | Yrd Mat Min Exi Min Mat Gar Sto Fac Low Low Dat Pro Fac Fac Fac Ext Cet Res Res Maximum Alert Level 4 | . 1 . . . 1 4 3 1 . . . . 1 . . 3 2 1 1 Low Security (%) 61 | 100 99 100 . 100 89 11 . 9 . . . . 74 100 100 50 . 28 85 Level 1 13 | . . . . . 10 15 . 90 . . . . 25 . . 17 13 71 14 Level 2 12 | . . . . . . 37 31 . . . . . . . . 19 86 . . Level 3 12 | . . . . . . 32 68 . . . . . . . . 11 . . . Level 4 . | . . . . . . 3 . . . . . . . . . . . . . Level 5 . | . . . . . . . . . . . . . . . . . . . . High Security . | . . . . . . . . . . . . . . . . . . . . Max Security . | . . . . . . . . . . . . . . . . . . . . Peak Influence 1158 | 5 207 16 . 5 229 1158 808 349 . . . . 265 86 23 735 527 252 302 Initial 564 | . . 16 . . . 104 564 349 . . . . . 86 23 . 393 252 113 Average 244 | . 113 . . . 122 579 727 268 . . . . 97 67 9 266 455 215 76 Influence Increases 7246 | 5 578 . . 10 693 1284 794 4 90 150 . . 909 42 10 1280 318 40 1039 Destroy 0b10 Robot/C 3460 | . 280 . . . 380 580 440 . 80 140 . . 340 . . 540 160 20 500 Destroy 0b10 Robot/NC 320 | 5 50 . . 5 35 5 30 . . . . . 95 10 10 25 10 . 40 Destroy Leader 642 | . 70 . . . 96 10 146 . 10 10 . . 82 2 . 64 . 10 142 Allied During Kill 741 | . . . . . . 4 50 . . . . . 5 . . 522 144 10 6 Trap Triggered on 0b10 10 | . 10 . . . . . . . . . . . . . . . . . . Successful Hack 170 | . 20 . . . 83 12 31 . . . . . 9 . . 15 . . . Select Force Hacks 30 | . . . . . . . . . . . . . 30 . . . . . . Disable Machine 315 | . 45 . . . 30 . 90 . . . . . 75 . . 45 . . 30 Anti-Garrison Action 500 | . . . . . . 500 . . . . . . . . . . . . . Destroy Structure 443 | . 28 . . 5 39 173 7 4 . . . . 48 . . 54 4 . 81 Partial Spotted 90 | . . . . . . . . . . . . . 45 30 . 15 . . . Lose Combat Pursuer 525 | . 75 . . . 30 . . . . . . . 180 . . . . . 240 Influence Decreases 6954 | 5 536 42 . 10 532 287 1184 589 273 150 . . 731 172 58 577 600 259 949 Entered New Map 1849 | . . 26 . . . 57 594 419 68 . . . . 92 25 . 310 169 89 Time Decay 3703 | 5 516 16 . 10 512 . 490 170 205 140 . . 361 80 33 463 160 50 492 Search Patrol Dispatched 100 | . . . . . . . . . . . . . 100 . . . . . . Lost Part 708 | . 20 . . . 20 90 . . . 10 . . 240 . . 10 10 . 308 Lost Ally 594 | . . . . . . 140 100 . . . . . 30 . . 104 120 40 60 Squads Dispatched 34 | . 2 . . . . . 1 1 . . . . 11 . 1 3 . . 15 Investigation 3 | . . . . . . . . . . . . . 1 . . 1 . . 1 Extermination 12 | . . . . . . . . 1 . . . . 4 . 1 . . . 6 Reinforcement 16 | . 2 . . . . . 1 . . . . . 6 . . 2 . . 5 Assault 2 | . . . . . . . . . . . . . . . . . . . 2 Garrison 1 | . . . . . . . . . . . . . . . . . . . 1 Intercept . | . . . . . . . . . . . . . . . . . . . . Searches Triggered 1 | . . . . . . . . . . . . . 1 . . . . . . Data Miner Redirects 2 | . . . . . . . . . . . . . 1 . . 1 . . . Construction Impeded 1 | . . . . . . . . . . . . . . . . . . . 1 Haulers Reinforced 2 | . . . . . . . . . . . . . 2 . . . . . . Active Scanning Responses . | . . . . . . . . . . . . . . . . . . . . Cargo Convoy Interrupts . | . . . . . . . . . . . . . . . . . . . . Stealth | -11 -10 -10 -10 -9 -8 -8 -8 -7 -7 -7 -7 -6 -6 -5 -4 -4 -4 -3 -2 --------- Run | Yrd Mat Min Exi Min Mat Gar Sto Fac Low Low Dat Pro Fac Fac Fac Ext Cet Res Res Distress Signals 10 | . 1 . . . 2 . 2 . . . . . . . . 1 2 . 2 Communications Jammed 73 | . . . . . . . 23 . . . . . 34 . . 16 . . . Distress Signals 73 | . . . . . . . 23 . . . . . 34 . . 16 . . . Times Spotted 289 | . 28 . . 2 33 31 24 1 5 4 . . 51 3 2 28 10 1 66 Peak Tracking Total 13 | . 4 . . 1 6 10 4 1 4 3 . . 7 3 1 5 5 1 13 Tactical Retreats 23 | . 5 . . . 1 . . . . . . . 8 . . . . . 9 Traps | -11 -10 -10 -10 -9 -8 -8 -8 -7 -7 -7 -7 -6 -6 -5 -4 -4 -4 -3 -2 ------- Run | Yrd Mat Min Exi Min Mat Gar Sto Fac Low Low Dat Pro Fac Fac Fac Ext Cet Res Res Traps Triggered 10 | . . . . . 1 3 2 . . . . . 3 . . . . . 1 Indirectly . | . . . . . . . . . . . . . . . . . . . . Trap Hack Attempts 82 | . 66 . . . . 16 . . . . . . . . . . . . . Triggered . | . . . . . . . . . . . . . . . . . . . . Disarmed . | . . . . . . . . . . . . . . . . . . . . Reprogrammed 5 | . 3 . . . . 2 . . . . . . . . . . . . . Reused 1 | . 1 . . . . . . . . . . . . . . . . . . Traps Extracted . | . . . . . . . . . . . . . . . . . . . . Installed 1 | . . . . 1 . . . . . . . . . . . . . . . Triggered 1 | . 1 . . . . . . . . . . . . . . . . . . Machines | -11 -10 -10 -10 -9 -8 -8 -8 -7 -7 -7 -7 -6 -6 -5 -4 -4 -4 -3 -2 ---------- Run | Yrd Mat Min Exi Min Mat Gar Sto Fac Low Low Dat Pro Fac Fac Fac Ext Cet Res Res Machines Disabled 29 | . 3 . . . 2 8 6 . . . . . 5 . . 3 . . 2 Max in Single Turn 3 | . 2 . . . 1 1 1 . . . . . 3 . . 1 . . 1 Garrison Access 5 | . . . . . . . 1 1 . . . . 1 1 . . . . 1 Garrison Relay 5 | . . . . . . 5 . . . . . . . . . . . . . Phase Generator 1 | . . . . . . 1 . . . . . . . . . . . . . Machines Repaired . | . . . . . . . . . . . . . . . . . . . . Machines Dismantled . | . . . . . . . . . . . . . . . . . . . . Machines Sabotaged . | . . . . . . . . . . . . . . . . . . . . Overloaded Fab Kills . | . . . . . . . . . . . . . . . . . . . . Hacking | -11 -10 -10 -10 -9 -8 -8 -8 -7 -7 -7 -7 -6 -6 -5 -4 -4 -4 -3 -2 --------- Run | Yrd Mat Min Exi Min Mat Gar Sto Fac Low Low Dat Pro Fac Fac Fac Ext Cet Res Res Machines Accessed 58 | . 6 . . 1 12 3 10 2 . . 4 . 8 5 1 3 . . 3 Terminals 40 | . 5 . . 1 8 3 8 . . . . . 5 3 1 3 . . 3 Fabricators 1 | . . . . . . . . 1 . . . . . . . . . . . Repair Stations 3 | . . . . . 2 . 1 . . . . . . . . . . . . Recycling Units 2 | . 1 . . . . . . . . . . . . 1 . . . . . Scanalyzers 2 | . . . . . 1 . . . . . . . 1 . . . . . . Garrison Access 6 | . . . . . 1 . 1 1 . . . . 2 1 . . . . . Total Hacks 156 | . 18 . . 2 35 5 24 2 . . 27 . 18 11 1 8 . . 5 Successful 105 | . 12 . . . 26 2 16 2 . . 27 . 11 4 1 4 . . . Failed 51 | . 6 . . 2 9 3 8 . . . . . 7 7 . 4 . . 5 Catastrophic 12 | . . . . 2 . . . . . . . . 3 2 . 2 . . 3 Database Lockouts . | . . . . . . . . . . . . . . . . . . . . Manual 68 | . 15 . . . 21 . 10 . . . . . 10 7 . 4 . . 1 Terminals 101 | . 17 . . 2 23 5 21 . . . . . 12 7 1 8 . . 5 Fabricators 1 | . . . . . . . . 1 . . . . . . . . . . . Repair Stations 10 | . . . . . 8 . 2 . . . . . . . . . . . . Recycling Units 3 | . 1 . . . . . . . . . . . . 2 . . . . . Scanalyzers 4 | . . . . . 2 . . . . . . . 2 . . . . . . Garrison Access 10 | . . . . . 2 . 1 1 . . . . 4 2 . . . . . Terminal Hacks 48 | . 4 . . . 5 2 4 . . . 27 . 2 . 1 3 . . . Record 12 | . . . . . . . . . . . 11 . 1 . . . . . . Part Schematic 9 | . . . . . . . . . . . 9 . . . . . . . . Robot Schematic 4 | . . . . . . . . . . . 4 . . . . . . . . Prototype ID Bank 6 | . 1 . . . 1 . 1 . . . 3 . . . . . . . . Open Door 3 | . . . . . . 1 1 . . . . . . . 1 . . . . Level Access Points 1 | . . . . . 1 . . . . . . . . . . . . . . Branch Access Points 3 | . 1 . . . 1 . . . . . . . 1 . . . . . . Emergency Access Points 2 | . 1 . . . . 1 . . . . . . . . . . . . . Terminal Index 2 | . . . . . 1 . 1 . . . . . . . . . . . . Locate Traps 4 | . . . . . . . 1 . . . . . . . . 3 . . . Zone Layout 2 | . 1 . . . 1 . . . . . . . . . . . . . . Fabricator Hacks 1 | . . . . . . . . 1 . . . . . . . . . . . Network Status 1 | . . . . . . . . 1 . . . . . . . . . . . Repair Station Hacks 9 | . . . . . 7 . 2 . . . . . . . . . . . . Scan Component 5 | . . . . . 4 . 1 . . . . . . . . . . . . Repair 4 | . . . . . 3 . 1 . . . . . . . . . . . . Recycling Unit Hacks 1 | . . . . . . . . . . . . . . 1 . . . . . Report Inventory 1 | . . . . . . . . . . . . . . 1 . . . . . Scanalyzer 4 | . . . . . 2 . . . . . . . 2 . . . . . . Retrieve Study 4 | . . . . . 2 . . . . . . . 2 . . . . . . Garrison Access Hacks 8 | . . . . . 1 . 1 1 . . . . 3 2 . . . . . Unlock Access 1 | . . . . . 1 . . . . . . . . . . . . . . Seal Access 4 | . . . . . . . 1 1 . . . . 1 1 . . . . . Coupler Status 3 | . . . . . . . . . . . . . 2 1 . . . . . Unauthorized Hacks 34 | . 8 . . . 11 . 9 . . . . . 4 1 . 1 . . . Terminals 32 | . 7 . . . 11 . 9 . . . . . 3 1 . 1 . . . Track 1 | . . . . . 1 . . . . . . . . . . . . . . Assimilate 1 | . . . . . 1 . . . . . . . . . . . . . . Botnet 13 | . 3 . . . 3 . 3 . . . . . 2 1 . 1 . . . Operators 2 | . . . . . 1 . 1 . . . . . . . . . . . . Skim 15 | . 4 . . . 5 . 5 . . . . . 1 . . . . . . Fabricators . | . . . . . . . . . . . . . . . . . . . . Repair Stations . | . . . . . . . . . . . . . . . . . . . . Recycling Units 1 | . 1 . . . . . . . . . . . . . . . . . . Mask 1 | . 1 . . . . . . . . . . . . . . . . . . Scanalyzers . | . . . . . . . . . . . . . . . . . . . . Garrison Access 1 | . . . . . . . . . . . . . 1 . . . . . . Eject 1 | . . . . . . . . . . . . . 1 . . . . . . Data Cores Recovered 1 | . . . . . . . . . . . . . . 1 . . . . . Used . | . . . . . . . . . . . . . . . . . . . . Hacking Detections 42 | . 4 . . 1 10 3 7 . . . . . 7 5 . 2 . . 3 Full Trace Events 2 | . . . . . . . . . . . . . . . . 1 . . 1 Feedback Events . | . . . . . . . . . . . . . . . . . . . . Feedback Blocked . | . . . . . . . . . . . . . . . . . . . . Robot Schematics Acquired 4 | . . . . . . . . . . . 4 . . . . . . . . Robots Built . | . . . . . . . . . . . . . . . . . . . . Authchips . | . . . . . . . . . . . . . . . . . . . . Time . | . . . . . . . . . . . . . . . . . . . . Total Robot Build Rating . | . . . . . . . . . . . . . . . . . . . . Part Schematics Acquired 9 | . . . . . . . . . . . 9 . . . . . . . . Parts Built . | . . . . . . . . . . . . . . . . . . . . Authchips . | . . . . . . . . . . . . . . . . . . . . Time . | . . . . . . . . . . . . . . . . . . . . Total Part Build Rating . | . . . . . . . . . . . . . . . . . . . . Part Studies Acquired 4 | . . . . . 2 . . . . . . . 2 . . . . . . Parts Repaired 4 | . . . . . 3 . 1 . . . . . . . . . . . . Time 140 | . . . . . 114 . 26 . . . . . . . . . . . . Parts Recycled . | . . . . . . . . . . . . . . . . . . . . Recycled Matter . | . . . . . . . . . . . . . . . . . . . . Retrieved Matter . | . . . . . . . . . . . . . . . . . . . . Retrieved Components . | . . . . . . . . . . . . . . . . . . . . Parts Scanalyzed . | . . . . . . . . . . . . . . . . . . . . Part Schematics Acquired . | . . . . . . . . . . . . . . . . . . . . Parts Damaged . | . . . . . . . . . . . . . . . . . . . . Bothacking | -11 -10 -10 -10 -9 -8 -8 -8 -7 -7 -7 -7 -6 -6 -5 -4 -4 -4 -3 -2 ------------ Run | Yrd Mat Min Exi Min Mat Gar Sto Fac Low Low Dat Pro Fac Fac Fac Ext Cet Res Res Used RIF Installer 2 | . . . . . . 2 . . . . . . . . . . . . . Signal Jammer 1 | . . . . . . 1 . . . . . . . . . . . . . Robots Hacked 26 | . . . 6 . . 1 1 2 3 1 . . 12 . . . . . . Non-combat 15 | . . . 3 . . . 1 2 3 1 . . 5 . . . . . . Combat 11 | . . . 3 . . 1 . . . . . . 7 . . . . . . Robot Hacks Applied 33 | . . . 6 . . 1 1 3 5 1 . . 16 . . . . . . parse_system 10 | . . . 6 . . 1 . . 2 . . . 1 . . . . . . no_distress 2 | . . . . . . . 1 . 1 . . . . . . . . . . generate_anomaly 1 | . . . . . . . . . 1 . . . . . . . . . . generate_echo 1 | . . . . . . . . . . 1 . . . . . . . . . hold_bot 1 | . . . . . . . . . . . . . 1 . . . . . . map_walls 1 | . . . . . . . . . . . . . 1 . . . . . . find_fabricator 1 | . . . . . . . . 1 . . . . . . . . . . . drop_inventory 2 | . . . . . . . . 1 . . . . 1 . . . . . . find_recycling 1 | . . . . . . . . 1 . . . . . . . . . . . block_reporting 1 | . . . . . . . . . . . . . 1 . . . . . . find_garrison 2 | . . . . . . . . . . . . . 2 . . . . . . amplify_resonance 1 | . . . . . . . . . 1 . . . . . . . . . . reboot_system 3 | . . . . . . . . . . . . . 3 . . . . . . go_dormant 1 | . . . . . . . . . . . . . 1 . . . . . . overwrite_iff 2 | . . . . . . . . . . . . . 2 . . . . . . streamctrl_high 1 | . . . . . . . . . . . . . 1 . . . . . . formatsys_high 2 | . . . . . . . . . . . . . 2 . . . . . . Relay Couplers Released 32 | . . . . . . 25 . . . . . . 4 . . . . . 3 Ejected 4 | . . . . . . . . . . . . . 4 . . . . . . Machine Destruction 24 | . . . . . . 21 . . . . . . . . . . . . 3 Programmers 4 | . . . . . . 4 . . . . . . . . . . . . . Attached 6 | . . . . . . . 1 . . . . . 5 . . . . . . Fabnet Peak Effective % . | . . . . . . . . . . . . . . . . . . . . Robots Rewired 23 | . . . . . . 12 . . . . . . . . . 11 . . . Allies Hacked . | . . . . . . . . . . . . . . . . . . . . Hacks Repelled . | . . . . . . . . . . . . . . . . . . . . Allies | -11 -10 -10 -10 -9 -8 -8 -8 -7 -7 -7 -7 -6 -6 -5 -4 -4 -4 -3 -2 -------- Run | Yrd Mat Min Exi Min Mat Gar Sto Fac Low Low Dat Pro Fac Fac Fac Ext Cet Res Res Total Allies 41 | . . 3 . . . 12 . . . . . . 5 . . 21 . . . Largest Group 14 | . . 3 3 3 . 5 5 . . . . . 1 . . 14 13 5 3 Highest-Rated Group 638 | . . 40 40 40 . 93 73 . . . . . 90 . . 638 515 186 111 Highest-Rated Ally 159 | . . 16 16 16 . 31 21 . . . . . 90 . . 159 51 46 46 Total Orders . | . . . . . . . . . . . . . . . . . . . . Ally Attacks 332 | . . . . 11 . 19 41 . . . . . 14 . . 147 67 12 21 Total Damage 8447 | . . . . 109 . 279 597 . . . . . 513 . . 4740 1420 323 466 Kills 45 | . . . . 1 . 2 7 . . . . . 3 . . 22 8 1 1 Allies Corrupted . | . . . . . . . . . . . . . . . . . . . . Allies Melted . | . . . . . . . . . . . . . . . . . . . . Intel | -11 -10 -10 -10 -9 -8 -8 -8 -7 -7 -7 -7 -6 -6 -5 -4 -4 -4 -3 -2 ------- Run | Yrd Mat Min Exi Min Mat Gar Sto Fac Low Low Dat Pro Fac Fac Fac Ext Cet Res Res Active Infowar (turns) 11122 | 41 575 499 1201 521 424 . . 355 1065 421 183 569 1417 165 103 1343 324 102 1814 Optics 4534 | . . . . . . . . . . . . . 683 165 103 1343 324 102 1814 Sensors 6714 | . . 479 1201 521 . . . 355 1065 421 183 569 734 . . . . . 1186 Terrain 3088 | . 58 20 . . 424 . . . . . . . 355 165 103 1183 . . 780 Structural 700 | . . . . . . . . . . . . . 285 . . . . . 415 Seismic 558 | 41 517 . . . . . . . . . . . . . . . . . . ECM 2 | . . . . . . . . . . . . . 2 . . . . . . Robot Analysis Total . | . . . . . . . . . . . . . . . . . . . . Derelict Logs Recovered 6 | . . 1 . 1 . . . . 2 . . 2 . . . . . . . Drone Launches . | . . . . . . . . . . . . . . . . . . . . Drone Recoveries . | . . . . . . . . . . . . . . . . . . . . Exploration | -11 -10 -10 -10 -9 -8 -8 -8 -7 -7 -7 -7 -6 -6 -5 -4 -4 -4 -3 -2 ------------- Run | Yrd Mat Min Exi Min Mat Gar Sto Fac Low Low Dat Pro Fac Fac Fac Ext Cet Res Res Turns Passed 17086 | 116 1576 499 1201 715 1718 1864 1291 355 1065 421 183 569 1581 165 103 1343 324 102 1895 Spaces Moved 9773 | 56 793 306 743 397 795 847 616 208 590 234 117 301 1208 345 293 635 152 51 1086 Core 194 | 4 . . . . . . . . . . . . . . . . . . 190 Treads 7517 | 52 470 306 743 397 794 847 616 208 590 234 117 301 397 . . 518 152 51 724 Legs 496 | . 323 . . . 1 . . . . . . . . . . . . . 172 Wheels . | . . . . . . . . . . . . . . . . . . . . Hover 696 | . . . . . . . . . . . . . 696 . . . . . . Flight 870 | . . . . . . . . . . . . . 115 345 293 117 . . . Fastest Speed 21 | 50 120 160 160 160 151 151 156 156 156 156 156 156 22 21 25 25 160 148 50 Average Speed 133 | 152 143 160 160 160 154 153 156 156 156 156 156 156 85 35 25 135 160 156 125 Slowest Speed 330 | 160 160 160 160 160 260 158 158 156 156 156 156 156 330 77 25 160 160 160 250 Overloaded Moves 76 | . . . . . . . . . . . . . 41 35 . . . . . Propulsion Burnouts . | . . . . . . . . . . . . . . . . . . . . Robots Hopped 2 | . . . . . . . . . . . . . . . . 2 . . . Potential Cave-ins . | . . . . . . . . . . . . . . . . . . . . Cave-ins Triggered . | . . . . . . . . . . . . . . . . . . . . Exploration Rate (%) 49 | 3 97 68 91 58 64 91 70 5 69 43 70 38 32 7 10 78 60 2 32 Regions Visited 19 Branch Regions 10 Pre-discovered Areas 4 | . . . . . 2 . . . . . 1 1 . . . . . . . Known Exits Taken 13 | . 1 . . 1 1 . 1 1 1 1 1 1 1 1 1 1 . . . Unknown Exits Taken 5 | 1 . 1 1 . . . . . . . . . . . . . 1 1 . Scrap Searched 11 | . . 1 . 2 . . . . 6 1 . 1 . . . . . . . Spaces Dug 84 | . 1 . . . 15 17 4 4 6 . . 24 12 . . . . . 1 Terrain Destroyed 333 | . 36 . . 5 34 74 4 4 42 30 . 27 49 . . 10 . . 18 Melee 52 | . 1 . . . 15 17 4 2 . . . . 12 . . . . . 1 Projectile 75 | . . . . 5 . . . 2 6 . . 27 9 . . 10 . . 16 AOE 205 | . 35 . . . 19 57 . . 36 30 . . 28 . . . . . . Terrain Rammed . | . . . . . . . . . . . . . . . . . . . . Walls Destroyed . | . . . . . . . . . . . . . . . . . . . . Machines Disabled . | . . . . . . . . . . . . . . . . . . . . Actions | -11 -10 -10 -10 -9 -8 -8 -8 -7 -7 -7 -7 -6 -6 -5 -4 -4 -4 -3 -2 --------- Run | Yrd Mat Min Exi Min Mat Gar Sto Fac Low Low Dat Pro Fac Fac Fac Ext Cet Res Res Total 12647 | 82 1114 315 752 468 1184 1205 854 228 710 274 117 374 1577 377 308 1024 210 72 1402 Wait 1180 | 11 150 9 . 38 227 71 126 2 87 25 . 42 119 11 . 106 10 14 132 Move 9751 | 55 792 305 742 396 795 846 615 207 589 233 116 300 1207 344 292 630 151 50 1086 Hop 2 | . . . . . . . . . . . . . . . . 2 . . . Pick Up 161 | 7 8 . . 7 22 17 21 1 1 1 . 1 29 5 1 16 9 1 14 Fast Attach 102 | 7 3 . . 2 12 4 6 . . . . 1 22 2 1 20 3 4 15 Attach 66 | . 3 . . 1 6 9 1 2 . 1 . . 21 2 2 2 1 1 14 Detach 10 | . . . . 1 1 . 1 . . . . . 1 . 1 3 . . 2 Swap 155 | 1 11 1 2 4 21 34 13 2 4 3 1 1 19 1 1 13 9 . 14 Drop 178 | . 14 . 1 7 28 14 17 . 1 . . 2 25 5 2 29 14 2 17 Fire 491 | 1 59 . . 11 39 54 39 10 28 11 . 27 75 . . 30 13 . 94 Melee 254 | . 8 . 7 . 33 92 15 4 . . . . 59 7 8 18 . . 3 Ram 10 | . . . . . . . . . . . . . . . . . . . 10 Kick . | . . . . . . . . . . . . . . . . . . . . Crush 2 | . . . . . . . . . . . . . . . . 1 . . 1 Escape Stasis . | . . . . . . . . . . . . . . . . . . . . Rewire 202 | . . . . . . 48 . . . . . . . . . 154 . . . Trap 83 | . 66 . . 1 . 16 . . . . . . . . . . . . . Miscellaneous . | . . . . . . . . . . . . . . . . . . . . Route ------- -11/Scrapyard -10/Materials (discovered 5 exits: [*Mat x3] / *Min x2) -10/Mines (discovered 3 exits: [*Mat x2] / *Exi) -10/Exiles (discovered 2 exits: *Min x2) -9/Mines -8/Materials (discovered 5 exits: *Fac x3 / *Sto / Gar) -8/Garrison (discovered 3 exits: *Sto x3) -8/Storage (discovered 2 exits: *Fac / Rec) -7/Factory (discovered 4 exits: Fac x2 / *Low x2) -7/Lower Caves -7/Lower Caves -7/Data Miner -6/Proximity Caves -6/Factory (discovered 3 exits: *Fac / *Low x2) -5/Factory -4/Factory (discovered 3 exits: [*Res] / *Upp / *Ext) -4/Extension (discovered 2 exits: [*Res] / *Cet) -4/Cetus (discovered 2 exits: [*Res] / [*Arc]) -3/Research -2/Research History --------- Turn | Location | Event 13 | -11/Scrapyard | Discovered new exit (range 14) 117 | -11/Scrapyard | Entered Materials 287 | -10/Materials | Discovered new exit (range 3) 331 | -10/Materials | Build established: Mutant 651 | -10/Materials | Discovered new exit (range 4) 1002 | -10/Materials | Discovered new exit (range 9) 1387 | -10/Materials | Discovered new exit (range 10) 1387 | -10/Materials | Identified exit to Mines 1693 | -10/Materials | Entered Mines 1749 | -10/Mines | Assisted by bots powering up and referring to "LRC-V3" 1846 | -10/Mines | Discovered new exit (range 10) 1859 | -10/Mines | Discovered new exit (range 11) 2184 | -10/Mines | Deemed a non-threat by the Exiles lab entrance 2186 | -10/Mines | Discovered new exit (range 5) 2192 | -10/Mines | Entered Exiles 2192 | -10/Exiles | Accompanied by 3 allies 2231 | -10/Exiles | Met 8R-AWN 2261 | -10/Exiles | Met EX-HEX 2320 | -10/Exiles | Met EX-DEC 2406 | -10/Exiles | Visited The Gauntlet 2709 | -10/Exiles | Discovered new exit (range 14) 2855 | -10/Exiles | Met EX-BIN 3371 | -10/Exiles | Discovered new exit (range 15) 3393 | -10/Exiles | Entered Mines 3393 | -9/Mines | Accompanied by 3 allies 3440 | -9/Mines | Met a Derelict bent on vengeance 3502 | -9/Mines | Received a Rocket Launcher from a helpful Derelict 3530 | -9/Mines | Assembled infested the area 3530 | -9/Mines | A weapon hastily lodged in a ceiling crevice suddenly fell to the ground 3624 | -9/Mines | Lost 3 allies 3949 | -9/Mines | Found a damaged Exp. Sensor Array with a note attached 3953 | -9/Mines | Found Prototype Device 3953 | -9/Mines | Identified Exp. Sensor Array 3983 | -9/Mines | Identified exit to Materials 4025 | -9/Mines | Found a hidden stash of uninstalled traps 4108 | -9/Mines | Entered Materials 4108 | -8/Materials | Evolved 4 slots: Propulsion x2, Utility x2 4109 | -8/Materials | Identified exit to Storage 4211 | -8/Materials | Build established: Scavenger-Mutant 4890 | -8/Materials | Repaired Adv. Treads+ 4929 | -8/Materials | Repaired Minigun+ 5336 | -8/Materials | Identified exit to Factory 5359 | -8/Materials | Build established: Mutant 5492 | -8/Materials | Learned Storage stockpile data 5530 | -8/Materials | Learned location of Extension (-4) 5558 | -8/Materials | Learned location of Zion (-6) 5578 | -8/Materials | Learned Factory garrison access intel 5586 | -8/Materials | Learned Storage stockpile data 5606 | -8/Materials | Learned Storage emergency access door positions 5637 | -8/Materials | Learned location of 1 exit from Extension 5662 | -8/Materials | Repaired Hrd. Medium Armor Plating 5826 | -8/Materials | Identified exit to Garrison 5826 | -8/Materials | Entered Garrison 5899 | -8/Garrison | Garrison Relay disabled 5910 | -8/Garrison | Triggered checkpoint 6315 | -8/Garrison | Triggered checkpoint 6321 | -8/Garrison | Triggered checkpoint 6371 | -8/Garrison | Destroyed 12 combat bots 6426 | -8/Garrison | Triggered checkpoint 6598 | -8/Garrison | Garrison Relay disabled 6651 | -8/Garrison | Discovered exit to Storage (range 14) 6842 | -8/Garrison | Garrison Relay disabled 6890 | -8/Garrison | Discovered exit to Storage (range 10) 7106 | -8/Garrison | Triggered checkpoint 7113 | -8/Garrison | Core integrity fell below 50% 7242 | -8/Garrison | Installed Relay Interface Framework 7329 | -8/Garrison | Discovered exit to Storage (range 12) 7348 | -8/Garrison | Triggered checkpoint 7397 | -8/Garrison | Expanded RIF knowledge: Signal Jamming 7418 | -8/Garrison | Build established: Scavenger-Mutant 7505 | -8/Garrison | Garrison Relay disabled 7522 | -8/Garrison | Phase Generator disabled 7621 | -8/Garrison | Garrison Relay disabled 7690 | -8/Garrison | Entered Storage 7690 | -8/Storage | Accompanied by 5 allies 7915 | -8/Storage | Lost 3 allies 8174 | -8/Storage | Build established: Mutant 8327 | -8/Storage | Discovered exit to Factory (range 4) 8420 | -8/Storage | Repaired Lrg. Storage Unit 8621 | -8/Storage | Core integrity fell below 20% 8626 | -8/Storage | Build established: Scavenger-Mutant 8724 | -8/Storage | Identified exit to Recycling 8806 | -8/Storage | Learned Factory repair station intel 8869 | -8/Storage | Learned Storage stockpile data 8901 | -8/Storage | Learned location of 3 exits from Factory 8981 | -8/Storage | Entered Factory 8981 | -7/Factory | Evolved 2 slots: Utility x2 8982 | -7/Factory | Identified exit to Lower Caves 8983 | -7/Factory | Identified exit to Factory 8984 | -7/Factory | Loaded intel: 6 repair station locations 8985 | -7/Factory | Loaded intel: 4 garrison access locations 9336 | -7/Factory | Entered Lower Caves 9873 | -7/Lower Caves | Learned Factory terminal intel 10128 | -7/Lower Caves | Learned 12 Factory zone layouts 10376 | -7/Lower Caves | Discovered new exit (range 15) 10399 | -7/Lower Caves | Identified exit to Lower Caves 10401 | -7/Lower Caves | Entered another Lower Caves area 10487 | -7/Lower Caves | Attracted the attention of an 0b10 checkpoint 10811 | -7/Lower Caves | Discovered new exit (range 8) 10820 | -7/Lower Caves | Identified exit to Data Miner 10822 | -7/Lower Caves | Entered Data Miner 10822 | -7/Data Miner | Discovered new exit (range 6) 10852 | -7/Data Miner | Met Data Miner 10893 | -7/Data Miner | Learned location of Section 7 (-2) 10893 | -7/Data Miner | Acquired the access code to Warlord's prototype stash 10916 | -7/Data Miner | Received God Mode back door access code from Data Miner 10999 | -7/Data Miner | Identified exit to Proximity Caves 11005 | -7/Data Miner | Entered Proximity Caves 11574 | -6/Proximity Caves | Entered Factory 11574 | -6/Factory | Evolved 2 slots: Utility x2 11576 | -6/Factory | Loaded intel: 26 terminal locations 12375 | -6/Factory | Lost 6 parts (3n3u) 12539 | -6/Factory | Lost 11 parts (3p4n1u3w) 12636 | -6/Factory | Identified exit to Lower Caves 12764 | -6/Factory | Incoming investigation squad redirected 12911 | -6/Factory | P-60 Hacker assimilated allied L-41 Fighter 12920 | -6/Factory | Core integrity fell below 50% 12958 | -6/Factory | P-60 Hacker assimilated allied S-27 Virus 12965 | -6/Factory | Discovered new exit (range 7) 12972 | -6/Factory | Identified exit to Factory 12974 | -6/Factory | Search patrols dispatched 13155 | -6/Factory | Entered another Factory area 13155 | -5/Factory | Evolved 2 slots: Propulsion x1, Utility x1 13183 | -5/Factory | Lost 3 parts (1p1n1w) 13228 | -5/Factory | Discovered new exit (range 8) 13230 | -5/Factory | Identified exit to Factory 13320 | -5/Factory | Entered another Factory area 13320 | -4/Factory | Evolved 2 slots: Power x1, Propulsion x1 13321 | -4/Factory | Identified exit to Extension 13323 | -4/Factory | Discovered new exit (range 16) 13326 | -4/Factory | Identified exit to Upper Caves 13333 | -4/Factory | Discovered new exit (range 17) 13423 | -4/Factory | Entered Extension 13424 | -4/Extension | Identified exit to Cetus 13464 | -4/Extension | Rescued A7 13486 | -4/Extension | Rescued a captive Derelict 13502 | -4/Extension | Build established: Scavenger-Scout 13709 | -4/Extension | Rescued a captive Derelict 13861 | -4/Extension | Rescued a captive Derelict 13945 | -4/Extension | Build established: Scavenger-Skirmisher 14061 | -4/Extension | Rescued a captive Derelict 14100 | -4/Extension | Spotted B-86 Titan 14130 | -4/Extension | Allies destroyed B-86 Titan 14134 | -4/Extension | Spotted B-86 Titan 14155 | -4/Extension | Allies destroyed B-86 Titan 14288 | -4/Extension | Rescued a captive Derelict 14338 | -4/Extension | Rescued a captive Derelict 14359 | -4/Extension | Found Prototype Protection 14359 | -4/Extension | Identified Med. Regenerative Plating 14362 | -4/Extension | Extracted ID and sensor layout for unrecognized location from A7's data core 14434 | -4/Extension | Build established: Scavenger-Mutant 14576 | -4/Extension | Incoming investigation squad redirected 14587 | -4/Extension | Rescued a captive Derelict 14633 | -4/Extension | Lost 3 allies 14639 | -4/Extension | Rescued a captive Derelict 14640 | -4/Extension | Rescued a captive Derelict 14716 | -4/Extension | Discovered new exit (range 10) 14766 | -4/Extension | Entered Cetus 14766 | -4/Cetus | Accompanied by 13 allies 14784 | -4/Cetus | Spotted Cetus Guard 14784 | -4/Cetus | Spotted Cetus Guard 14788 | -4/Cetus | Spotted Cetus Guard 14789 | -4/Cetus | Spotted Cetus Guard 14800 | -4/Cetus | Allies destroyed Cetus Guard 14807 | -4/Cetus | Allies destroyed Cetus Guard 14807 | -4/Cetus | Destroyed Cetus Guard 14808 | -4/Cetus | Allies destroyed Cetus Guard 14843 | -4/Cetus | Lost 3 allies 14951 | -4/Cetus | Discovered new exit (range 22) 14988 | -4/Cetus | Spotted Cetus Guard 14991 | -4/Cetus | Spotted Cetus Guard 14992 | -4/Cetus | Spotted Cetus Guard 14995 | -4/Cetus | Spotted Cetus Guard 14996 | -4/Cetus | Discovered new exit (range 21) 15007 | -4/Cetus | Allies destroyed Cetus Guard 15012 | -4/Cetus | Allies destroyed Cetus Guard 15023 | -4/Cetus | Destroyed Cetus Guard 15025 | -4/Cetus | Allies destroyed Cetus Guard 15037 | -4/Cetus | Met Revision 17 15049 | -4/Cetus | Lost 5 allies 15090 | -4/Cetus | Entered Research 15090 | -3/Research | Accompanied by 5 allies 15090 | -3/Research | Evolved 2 slots: Utility x1, Weapon x1 15123 | -3/Research | Discovered new exit (range 20) 15192 | -3/Research | Entered another Research area 15192 | -2/Research | Accompanied by 3 allies 15192 | -2/Research | Evolved 2 slots: Utility x2 15392 | -2/Research | Build established: Scavenger-Tank 16292 | -2/Research | Build established: Scavenger-Skirmisher 16484 | -2/Research | System corruption reached 10% 16519 | -2/Research | Lost 5 parts (1p1n2u1w) 16753 | -2/Research | Lost 10 parts (1p2n5u2w) 16953 | -2/Research | Garrison activated, responded to threat 16985 | -2/Research | Spotted B-90 Cyclops 16990 | -2/Research | Core integrity fell below 50% 16998 | -2/Research | Spotted B-90 Cyclops 17017 | -2/Research | Lost 13 parts (2p4n6u1w) 17077 | -2/Research | Core integrity fell below 20% 17087 | -2/Research | Destroyed by H-88 Terminator with Heavy Machine Gun Last Messages --------------- 17046_ Slammed into W-44 Eye. 17048_ System corrupted: Matter fused (-5). 17048_ Acquired 3 matter. 17048_ Slammed into W-44 Eye. 17052_ K-01 Serf cleans the Meson Extractor. 17074_ ALERT: Potential suspicious activity detected, Programmers report to Research Zone 9S. 17075_ System corrupted: Matter fused (-10). 17079_ Slug penetrates A-15 Conveyor. 17083_ Slug penetrates Wall. 17084_ Slammed into H-88 Terminator. 17084_ Broken Adv. Signal Interpreter destroyed. 17084_ System corrupted by crushing effect (+3). 17084_ Penetrated by Slug. 17085_ Slammed into H-88 Terminator. 17086_ Slug penetrates Wall. 17087_ Slammed into H-88 Terminator. 17087_ Penetrated by Slug. Map ----- +----------------------------------------------------+ | ????????????????????????????????????#+##+#???##### | | ????????????????????????????????????# #???# | | ????????????????????????????????????# #???# | | ????????????????????????????????????# #???# ## | | ?????????????????????????????######?# #???# #? | | ?????????????????????????????# # #???# #? | | ?????????????????????????????# # ##### #? | | ?????????????????????????????# + % #? | | ?????????????????????????????# # ########+##? | | ?????????????????????????????# # #????? ? | | ?????????????????????????????# ?#%#???== | | ?????????????????????????????######?# #?# = | | ????????????????????????????????????#%## | | ????????????????????????????????????#%### | | ?????????????????????????????????####+############ | | ?????????????????????????????????# #??? | | ?????????????????????????????????# #??? | | ?????????????????????????????????# """ """ #??? | | ?????????????????????????????????# """ """ #??? | | ????????????????????????###??????# """ """ #??? | | ???????????????????????? #??????# #??? | | ????????????????????????# #??????# #??? | | ????????????????????????# #??????# """ """ #??? | | ????????????????????????# #??????# """ """ #??? | | ????????????????????????#h#??????# """ """ #??? | | ????????????????????????#@#?###### #??? | | ??????????????????????###%#?#"""## #??? | | ???????????????????#### # #?#"Y"######+#+#######+# | | ???????????????????# =!# ###" "###### | | ???????????????????# ]!# h | | ???????????????????# #Y | | ???????????????????# # | | ???????????????????# + ![ ############### | | ???????????????????# # [[ #?????????????? | | ???????????????????# # #?????????????? | | ???????????????????# # #?????????????? | | ???????????????????# # #?????????????? | | ???????????????????###### ##?????????????? | | ????????????????????????# #??????????????? | | ????????????????????????# #??????????????? | | ????????????????????????########+#####???????????? | | ???????????????????????????# #???????????? | | ???????????????????????????# #???????????? | | ???????????????????????????# #???????????? | | ???????????????????????????# #???????????? | | ???????????????????????????###########???????????? | | ?????????????????????????????????????????????????? | | ?????????????????????????????????????????????????? | | ?????????????????????????????????????????????????? | | ?????????????????????????????????????????????????? | +----------------------------------------------------+ Best States ------------- Heat Dissipation 118 Coolant Potential 50 Energy Generation 45 Energy Capacity 600 Matter Stores 300 Matter Capacity 300 Sight Range 22 Robot Scan Range 20 Terrain Scan Range 16 Terrain Scan Density 160 Corruption Block 15 Armor Coverage 1350 Resistance: TH 30 Phase Shifting 5 Evasion (%) 65 Targeting Accuracy 8 Melee Accuracy 8 Target Analysis 12 Core Analysis 6 Recoil Reduction 12 Offensive Hacking 14 Defensive Hacking 20 Relay Coupler Types 3 Relay Coupler Value 52 Item Schematics ----------------- Combat Drone Bay | -7/Data Miner | Free Lgt. Regenerative Plating | -7/Data Miner | Free Cld. Cesium-ion Thruster | -7/Data Miner | Free Exp. Targeting Computer | -7/Data Miner | Free Imp. Lightning Gun | -7/Data Miner | Free Field Propulsion Drive | -7/Data Miner | Free Adv. Shield Generator | -7/Data Miner | Free KE Penetrator | -7/Data Miner | Free Remote Force Field | -7/Data Miner | Free Robot Schematics ------------------ M-14 Sweeper | -7/Data Miner | Free H-66 Slayer | -7/Data Miner | Free W-25 Informer | -7/Data Miner | Free M-22 Extractor | -7/Data Miner | Free Fabricated ------------ Nothing Repaired ---------- Adv. Treads | 21% | -8/Materials Minigun | 37% | -8/Materials Hrd. Medium Armor Plating | 29% | -8/Materials Lrg. Storage Unit | 72% | -8/Storage Studied --------- Minigun | -8/Materials | Hacked Adv. Treads | -8/Materials | Hacked Remote Datajack | -6/Factory | Hacked Gravmag System | -6/Factory | Hacked Alien Tech Used ----------------- None Achievements -------------- Analysis Probe Hehehe Into The Breach Whoosh! Challenges ------------ None Game ------ Seed TimingVortexJetlance Manual? 0 Play Time 03:43:44 Cumulative 116.5 hours Start 2026.07.11 @ 20:21:27 End 2026.07.12 @ 14:02:50 Sessions 3 Manual Loads 0 Difficulty Rogue Special Mode None Game No. 115 Rogue 108 Adventurer 0 Explorer 7 Win Type - Total 1 Types 1/0/0/0/0/0/0/0/0/0 Lore% 35 Gallery% 44 Achievement% 36 Wizard Run 0 Options --------- Layout 1 ASCII 0 Keyboard 0 Movement Numpad Keybinds 0 Fullscreen 2 Font 32/SmallcapsGlow Map View 50x35 Zoom Use 0% Tactical HUD 1 Map Filters NONE Filters NONE Steam 1 RUN: 4dbf8ab6-eb10-4be1-a9b3-2939a6d666a5